Workbook

Sheet Listă inventar
C1: Listă inventar | F1: Evidențiați elementele care vor fi comandate din nou? | H1: Da
B3: Elemente semnalizate pentru comenzi repetate | C3: ID inventar | D3: Nume | E3: Descriere | F3: Preț unitar | G3: Cantitate în stoc | H3: Valoarea inventar | I3: Nivel comandă repetată | J3: Timp în zile comandă repetată | K3: Cantitate comandă repetată | L3: Întrerupt?
B4: =IFERROR((ListăInventar[[#This Row],[Cantitate în stoc]]<=ListăInventar[[#This Row],[Nivel comandă repetată]])*(ListăInventar[[#This Row],[Întrerupt?]]="")*valEvidențiată,0) -> 1 | C4: IN0001 | D4: Articolul 1 | E4: Desc 1 | F4: 51.00 RON | G4: 25 | H4: =ListăInventar[[#This Row],[Preț unitar]]*ListăInventar[[#This Row],[Cantitate în stoc]] -> 1,275.00 RON | I4: 29 | J4: 13 | K4: 50
B5: =IFERROR((ListăInventar[[#This Row],[Cantitate în stoc]]<=ListăInventar[[#This Row],[Nivel comandă repetată]])*(ListăInventar[[#This Row],[Întrerupt?]]="")*valEvidențiată,0) -> 1 | C5: IN0002 | D5: Articolul 2 | E5: Desc 2 | F5: 93.00 RON | G5: 132 | H5: =ListăInventar[[#This Row],[Preț unitar]]*ListăInventar[[#This Row],[Cantitate în stoc]] -> 12,276.00 RON | I5: 231 | J5: 4 | K5: 50
B6: =IFERROR((ListăInventar[[#This Row],[Cantitate în stoc]]<=ListăInventar[[#This Row],[Nivel comandă repetată]])*(ListăInventar[[#This Row],[Întrerupt?]]="")*valEvidențiată,0) -> 0 | C6: IN0003 | D6: Articolul 3 | E6: Desc 3 | F6: 57.00 RON | G6: 151 | H6: =ListăInventar[[#This Row],[Preț unitar]]*ListăInventar[[#This Row],[Cantitate în stoc]] -> 8,607.00 RON | I6: 114 | J6: 11 | K6: 150
B7: =IFERROR((ListăInventar[[#This Row],[Cantitate în stoc]]<=ListăInventar[[#This Row],[Nivel comandă repetată]])*(ListăInventar[[#This Row],[Întrerupt?]]="")*valEvidențiată,0) -> 0 | C7: IN0004 | D7: Articolul 4 | E7: Desc 4 | F7: 19.00 RON | G7: 186 | H7: =ListăInventar[[#This Row],[Preț unitar]]*ListăInventar[[#This Row],[Cantitate în stoc]] -> 3,534.00 RON | I7: 158 | J7: 6 | K7: 50
B8: =IFERROR((ListăInventar[[#This Row],[Cantitate în stoc]]<=ListăInventar[[#This Row],[Nivel comandă repetată]])*(ListăInventar[[#This Row],[Întrerupt?]]="")*valEvidențiată,0) -> 0 | C8: IN0005 | D8: Articolul 5 | E8: Desc 5 | F8: 75.00 RON | G8: 62 | H8: =ListăInventar[[#This Row],[Preț unitar]]*ListăInventar[[#This Row],[Cantitate în stoc]] -> 4,650.00 RON | I8: 39 | J8: 12 | K8: 50
B9: =IFERROR((ListăInventar[[#This Row],[Cantitate în stoc]]<=ListăInventar[[#This Row],[Nivel comandă repetată]])*(ListăInventar[[#This Row],[Întrerupt?]]="")*valEvidențiată,0) -> 1 | C9: IN0006 | D9: Articolul 6 | E9: Desc 6 | F9: 11.00 RON | G9: 5 | H9: =ListăInventar[[#This Row],[Preț unitar]]*ListăInventar[[#This Row],[Cantitate în stoc]] -> 55.00 RON | I9: 9 | J9: 13 | K9: 150
B10: =IFERROR((ListăInventar[[#This Row],[Cantitate în stoc]]<=ListăInventar[[#This Row],[Nivel comandă repetată]])*(ListăInventar[[#This Row],[Întrerupt?]]="")*valEvidențiată,0) -> 0 | C10: IN0007 | D10: Articolul 7 | E10: Desc 7 | F10: 56.00 RON | G10: 58 | H10: =ListăInventar[[#This Row],[Preț unitar]]*ListăInventar[[#This Row],[Cantitate în stoc]] -> 3,248.00 RON | I10: 109 | J10: 7 | K10: 100 | L10: da
B11: =IFERROR((ListăInventar[[#This Row],[Cantitate în stoc]]<=ListăInventar[[#This Row],[Nivel comandă repetată]])*(ListăInventar[[#This Row],[Întrerupt?]]="")*valEvidențiată,0) -> 1 | C11: IN0008 | D11: Articolul 8 | E11: Desc 8 | F11: 38.00 RON | G11: 101 | H11: =ListăInventar[[#This Row],[Preț unitar]]*ListăInventar[[#This Row],[Cantitate în stoc]] -> 3,838.00 RON | I11: 162 | J11: 3 | K11: 100
B12: =IFERROR((ListăInventar[[#This Row],[Cantitate în stoc]]<=ListăInventar[[#This Row],[Nivel comandă repetată]])*(ListăInventar[[#This Row],[Întrerupt?]]="")*valEvidențiată,0) -> 0 | C12: IN0009 | D12: Articolul 9 | E12: Desc 9 | F12: 59.00 RON | G12: 122 | H12: =ListăInventar[[#This Row],[Preț unitar]]*ListăInventar[[#This Row],[Cantitate în stoc]] -> 7,198.00 RON | I12: 82 | J12: 3 | K12: 150
B13: =IFERROR((ListăInventar[[#This Row],[Cantitate în stoc]]<=ListăInventar[[#This Row],[Nivel comandă repetată]])*(ListăInventar[[#This Row],[Întrerupt?]]="")*valEvidențiată,0) -> 1 | C13: IN0010 | D13: Articolul 10 | E13: Desc 10 | F13: 50.00 RON | G13: 175 | H13: =ListăInventar[[#This Row],[Preț unitar]]*ListăInventar[[#This Row],[Cantitate în stoc]] -> 8,750.00 RON | I13: 283 | J13: 8 | K13: 150
B14: =IFERROR((ListăInventar[[#This Row],[Cantitate în stoc]]<=ListăInventar[[#This Row],[Nivel comandă repetată]])*(ListăInventar[[#This Row],[Întrerupt?]]="")*valEvidențiată,0) -> 1 | C14: IN0011 | D14: Articolul 11 | E14: Desc 11 | F14: 59.00 RON | G14: 176 | H14: =ListăInventar[[#This Row],[Preț unitar]]*ListăInventar[[#This Row],[Cantitate în stoc]] -> 10,384.00 RON | I14: 229 | J14: 1 | K14: 100
B15: =IFERROR((ListăInventar[[#This Row],[Cantitate în stoc]]<=ListăInventar[[#This Row],[Nivel comandă repetată]])*(ListăInventar[[#This Row],[Întrerupt?]]="")*valEvidențiată,0) -> 1 | C15: IN0012 | D15: Articolul 12 | E15: Desc 12 | F15: 18.00 RON | G15: 22 | H15: =ListăInventar[[#This Row],[Preț unitar]]*ListăInventar[[#This Row],[Cantitate în stoc]] -> 396.00 RON | I15: 36 | J15: 12 | K15: 50
B16: =IFERROR((ListăInventar[[#This Row],[Cantitate în stoc]]<=ListăInventar[[#This Row],[Nivel comandă repetată]])*(ListăInventar[[#This Row],[Întrerupt?]]="")*valEvidențiată,0) -> 1 | C16: IN0013 | D16: Articolul 13 | E16: Desc 13 | F16: 26.00 RON | G16: 72 | H16: =ListăInventar[[#This Row],[Preț unitar]]*ListăInventar[[#This Row],[Cantitate în stoc]] -> 1,872.00 RON | I16: 102 | J16: 9 | K16: 100
B17: =IFERROR((ListăInventar[[#This Row],[Cantitate în stoc]]<=ListăInventar[[#This Row],[Nivel comandă repetată]])*(ListăInventar[[#This Row],[Întrerupt?]]="")*valEvidențiată,0) -> 1 | C17: IN0014 | D17: Articolul 14 | E17: Desc 14 | F17: 42.00 RON | G17: 62 | H17: =ListăInventar[[#This Row],[Preț unitar]]*ListăInventar[[#This Row],[Cantitate în stoc]] -> 2,604.00 RON | I17: 83 | J17: 2 | K17: 100
B18: =IFERROR((ListăInventar[[#This Row],[Cantitate în stoc]]<=ListăInventar[[#This Row],[Nivel comandă repetată]])*(ListăInventar[[#This Row],[Întrerupt?]]="")*valEvidențiată,0) -> 0 | C18: IN0015 | D18: Articolul 15 | E18: Desc 15 | F18: 32.00 RON | G18: 46 | H18: =ListăInventar[[#This Row],[Preț unitar]]*ListăInventar[[#This Row],[Cantitate în stoc]] -> 1,472.00 RON | I18: 23 | J18: 15 | K18: 50
B19: =IFERROR((ListăInventar[[#This Row],[Cantitate în stoc]]<=ListăInventar[[#This Row],[Nivel comandă repetată]])*(ListăInventar[[#This Row],[Întrerupt?]]="")*valEvidențiată,0) -> 1 | C19: IN0016 | D19: Articolul 16 | E19: Desc 16 | F19: 90.00 RON | G19: 96 | H19: =ListăInventar[[#This Row],[Preț unitar]]*ListăInventar[[#This Row],[Cantitate în stoc]] -> 8,640.00 RON | I19: 180 | J19: 3 | K19: 50
B20: =IFERROR((ListăInventar[[#This Row],[Cantitate în stoc]]<=ListăInventar[[#This Row],[Nivel comandă repetată]])*(ListăInventar[[#This Row],[Întrerupt?]]="")*valEvidențiată,0) -> 0 | C20: IN0017 | D20: Articolul 17 | E20: Desc 17 | F20: 97.00 RON | G20: 57 | H20: =ListăInventar[[#This Row],[Preț unitar]]*ListăInventar[[#This Row],[Cantitate în stoc]] -> 5,529.00 RON | I20: 98 | J20: 12 | K20: 50 | L20: Da
B21: =IFERROR((ListăInventar[[#This Row],[Cantitate în stoc]]<=ListăInventar[[#This Row],[Nivel comandă repetată]])*(ListăInventar[[#This Row],[Întrerupt?]]="")*valEvidențiată,0) -> 1 | C21: IN0018 | D21: Articolul 18 | E21: Desc 18 | F21: 12.00 RON | G21: 6 | H21: =ListăInventar[[#This Row],[Preț unitar]]*ListăInventar[[#This Row],[Cantitate în stoc]] -> 72.00 RON | I21: 7 | J21: 13 | K21: 50
B22: =IFERROR((ListăInventar[[#This Row],[Cantitate în stoc]]<=ListăInventar[[#This Row],[Nivel comandă repetată]])*(ListăInventar[[#This Row],[Întrerupt?]]="")*valEvidențiată,0) -> 1 | C22: IN0019 | D22: Articolul 19 | E22: Desc 19 | F22: 82.00 RON | G22: 143 | H22: =ListăInventar[[#This Row],[Preț unitar]]*ListăInventar[[#This Row],[Cantitate în stoc]] -> 11,726.00 RON | I22: 164 | J22: 12 | K22: 150
B23: =IFERROR((ListăInventar[[#This Row],[Cantitate în stoc]]<=ListăInventar[[#This Row],[Nivel comandă repetată]])*(ListăInventar[[#This Row],[Întrerupt?]]="")*valEvidențiată,0) -> 0 | C23: IN0020 | D23: Articolul 20 | E23: Desc 20 | F23: 16.00 RON | G23: 124 | H23: =ListăInventar[[#This Row],[Preț unitar]]*ListăInventar[[#This Row],[Cantitate în stoc]] -> 1,984.00 RON | I23: 113 | J23: 14 | K23: 50
B24: =IFERROR((ListăInventar[[#This Row],[Cantitate în stoc]]<=ListăInventar[[#This Row],[Nivel comandă repetată]])*(ListăInventar[[#This Row],[Întrerupt?]]="")*valEvidențiată,0) -> 0 | C24: IN0021 | D24: Articolul 21 | E24: Desc 21 | F24: 19.00 RON | G24: 112 | H24: =ListăInventar[[#This Row],[Preț unitar]]*ListăInventar[[#This Row],[Cantitate în stoc]] -> 2,128.00 RON | I24: 75 | J24: 11 | K24: 50
B25: =IFERROR((ListăInventar[[#This Row],[Cantitate în stoc]]<=ListăInventar[[#This Row],[Nivel comandă repetată]])*(ListăInventar[[#This Row],[Întrerupt?]]="")*valEvidențiată,0) -> 0 | C25: IN0022 | D25: Articolul 22 | E25: Desc 22 | F25: 24.00 RON | G25: 182 | H25: =ListăInventar[[#This Row],[Preț unitar]]*ListăInventar[[#This Row],[Cantitate în stoc]] -> 4,368.00 RON | I25: 132 | J25: 15 | K25: 150
B26: =IFERROR((ListăInventar[[#This Row],[Cantitate în stoc]]<=ListăInventar[[#This Row],[Nivel comandă repetată]])*(ListăInventar[[#This Row],[Întrerupt?]]="")*valEvidențiată,0) -> 0 | C26: IN0023 | D26: Articolul 23 | E26: Desc 23 | F26: 29.00 RON | G26: 106 | H26: =ListăInventar[[#This Row],[Preț unitar]]*ListăInventar[[#This Row],[Cantitate în stoc]] -> 3,074.00 RON | I26: 142 | J26: 1 | K26: 150 | L26: Da
B27: =IFERROR((ListăInventar[[#This Row],[Cantitate în stoc]]<=ListăInventar[[#This Row],[Nivel comandă repetată]])*(ListăInventar[[#This Row],[Întrerupt?]]="")*valEvidențiată,0) -> 0 | C27: IN0024 | D27: Articolul 24 | E27: Desc 24 | F27: 75.00 RON | G27: 173 | H27: =ListăInventar[[#This Row],[Preț unitar]]*ListăInventar[[#This Row],[Cantitate în stoc]] -> 12,975.00 RON | I27: 127 | J27: 9 | K27: 100
B28: =IFERROR((ListăInventar[[#This Row],[Cantitate în stoc]]<=ListăInventar[[#This Row],[Nivel comandă repetată]])*(ListăInventar[[#This Row],[Întrerupt?]]="")*valEvidențiată,0) -> 0 | C28: IN0025 | D28: Articolul 25 | E28: Desc 25 | F28: 14.00 RON | G28: 28 | H28: =ListăInventar[[#This Row],[Preț unitar]]*ListăInventar[[#This Row],[Cantitate în stoc]] -> 392.00 RON | I28: 21 | J28: 8 | K28: 50
